fUSD/lending_fUSD_20260120
["ID","MTS","AMOUNT","RATE_DAILY","PERIOD"]
[402738278,1768870233903,-166.66,0.00017886,2]
[402738279,1768870233912,-213.90517144,0.000179,2]
[402738280,1768870233924,-461.8801176,0.000179,2]
[402738281,1768870233934,-156.91270256,0.000179,2]
[402738282,1768870233943,-151.13649324,0.000179,2]
[402738283,1768870233952,-463.12608577,0.000179,2]
[402738284,1768870233961,-500.0,0.000179,2]
[402738285,1768870233971,-431.2059839,0.000179,2]
[402738286,1768870233980,-292.8,0.00017901,2]
[402738287,1768870233989,-3906.04054738,0.00017911,2]
[402738288,1768870233999,-2199.96418318,0.00017912,2]
[402738289,1768870234009,-420.0,0.00017963,2]
[402738290,1768870234019,-169.39267462,0.00017973,2]
[402738291,1768870234028,-500.0,0.00017973,2]
[402738292,1768870234038,-189790.4087756,0.00017997,2]
[402738293,1768870234048,-151.0,0.00017997,2]
[402738294,1768870234058,-151.0,0.00017997,2]
[402738295,1768870234068,-500.0,0.00017999,2]
[402738296,1768870234077,-500.0,0.00017999,2]
[402738297,1768870234087,-500.0,0.00017999,2]
[402738298,1768870234096,-500.0,0.00017999,2]
[402738299,1768870234106,-172.67087635,0.00017999,2]
[402738300,1768870234117,-393.69645319,0.00017999,2]
[402738301,1768870234128,-189.65346358,0.00017999,2]
[402738302,1768870234137,-200.0,0.00018,2]
[402738303,1768870234146,-16780.716241,0.00018,2]
[402738304,1768870234170,-4057.68000001,0.00018,2]
[402738305,1768870234181,-2778.63,0.00018,2]
[402738306,1768870234197,-2075.77743633,0.00018,2]
[402738307,1768870234208,-1432.49858027,0.00018,2]
[402738308,1768870234219,-2034.01693189,0.00018,2]
[402738311,1768870237466,-2313.98495344,0.00017097,2]
[402738312,1768870237475,-664.92504656,0.00017097,2]
[402738313,1768870237518,-5441.71785638,0.00017097,2]
[402738314,1768870237528,-10772.84192429,0.00017097,2]
[402738315,1768870237538,-331503.88107134,0.00018,2]
[402738316,1768870237548,-1026.42,0.00018,7]
[402738317,1768870237558,-1660656.06101916,0.00018,2]
[402738318,1768870237618,-1082.36788836,0.00018,2]
[402738319,1768870237629,-691.00375427,0.00018,2]
[402738320,1768870237640,-7887.11604352,0.00018,2]
[402738321,1768870237652,-49608.39683299,0.00018,2]
[402738322,1768870237663,-10525.24541044,0.00018,2]
[402738323,1768870237694,-1080.10920441,0.00018,2]
[402738324,1768870237705,-125950.34896853,0.00018,2]
[402738325,1768870237718,-19365.06113403,0.00018,2]
[402738326,1768870237729,-2914.20047485,0.00018,2]
[402738327,1768870237740,-4141.776292,0.00018,2]
[402738329,1768870237758,-4815.271,0.00018,2]
[402738331,1768870237783,-7294.76997,0.00018,2]
[402738333,1768870237799,-5699.00000005,0.00018,2]
[402738335,1768870237813,-31340.76000001,0.00018,2]
[402738338,1768870237826,-2149.884,0.00018,2]
[402738340,1768870237839,-4318.269725,0.00018,2]
[402738342,1768870237852,-3988.58000006,0.00018,2]
[402738343,1768870237865,-6988.5147958,0.00018,2]
[402738355,1768870239674,-427.96019811,0.00018,2]
[402738356,1768870239689,-722898.58762455,0.00018,2]
[402738357,1768870239699,-182378.0851439,0.00018,2]
[402738358,1768870239710,-150.0,0.00018012,2]
[402738359,1768870239721,-250.0,0.00018056,2]
[402738360,1768870239731,-545.33604883,0.00018073,2]
[402738361,1768870239741,-742.43719225,0.00018081,2]
[402738362,1768870239751,-193.0,0.00018081,2]
[402738363,1768870239760,-250.0,0.00018081,2]
[402738364,1768870239770,-2500.0,0.00018081,2]
[402738365,1768870239779,-201.02555624,0.00018081,2]
[402738366,1768870239788,-195.0,0.00018081,2]
[402738367,1768870239799,-300.0,0.00018081,2]
[402738368,1768870239808,-434.8846564,0.00018081,2]
[402738369,1768870239818,-1777.58781841,0.000181,2]
[402738370,1768870239828,-1000.0,0.00018145,2]
[402738371,1768870239837,-480.91,0.00018181,2]
[402738372,1768870239847,-468.14,0.00018302,2]
[402738373,1768870239856,-88373.43,0.00018356,2]
[402738374,1768870239866,-500.0,0.00018522,2]
[402738375,1768870239876,-292.8,0.00018646,2]
[402738376,1768870239887,-500.0,0.00018697,2]
[402738377,1768870239903,-500.0,0.00018697,2]
[402738378,1768870239912,-151.28,0.000188,2]
[402738379,1768870239926,-151.28,0.000188,2]
[402738380,1768870239936,-151.28,0.000188,2]
[402738381,1768870239946,-151.28,0.000188,2]
[402738382,1768870239956,-151.28,0.000188,2]
[402738383,1768870239969,-151.28,0.000188,2]
[402738384,1768870239981,-151.28,0.000188,2]
[402738385,1768870239991,-151.28,0.000188,2]
[402738386,1768870240004,-151.28,0.000188,2]
[402738387,1768870240016,-151.28,0.000188,2]
[402738388,1768870240025,-151.28,0.000188,2]
[402738390,1768870240037,-151.28,0.000188,2]
[402738391,1768870240047,-151.28,0.000188,2]
[402738392,1768870240057,-151.28,0.000188,2]
[402738393,1768870240068,-151.28,0.000188,2]
[402738394,1768870240079,-151.28,0.000188,2]
[402738395,1768870240088,-151.28,0.000188,2]
[402738396,1768870240098,-151.28,0.000188,2]
[402738397,1768870240108,-151.28,0.000188,2]
[402738398,1768870240118,-151.28,0.000188,2]
[402738399,1768870240127,-151.28,0.000188,2]
[402738400,1768870240136,-151.28,0.000188,2]
[402738401,1768870240146,-150.57545204,0.000189,2]
[402738402,1768870240156,-468.14,0.00018919,2]
[402738403,1768870240165,-5164.63507325,0.00019,2]
[402738404,1768870240174,-300.0,0.00019,2]
[402738405,1768870240184,-523.31418978,0.00019,2]
[402738406,1768870240194,-480.91,0.00019047,2]
[402738407,1768870240203,-16115.52723738,0.00019097,2]
[402738408,1768870240213,-500.0,0.00019178,2]
[402738409,1768870240223,-500.0,0.00019178,2]
[402738410,1768870240233,-500.0,0.00019178,2]
[402738411,1768870240245,-500.0,0.00019178,2]
[402738412,1768870240256,-590.16416657,0.00019178,2]
[402738413,1768870240267,-500.0,0.00019178,2]
[402738414,1768870240279,-500.0,0.00019178,2]
[402738415,1768870240296,-500.0,0.00019178,2]
[402738416,1768870240307,-500.0,0.00019178,2]
[402738417,1768870240316,-500.0,0.00019178,2]
[402738418,1768870240326,-500.0,0.00019178,2]
[402738419,1768870240335,-1089.72,0.00019178,30]
[402738420,1768870240346,-4657.24865685,0.00019224,7]
[402738421,1768870240356,-292.8,0.00019392,2]
[402738422,1768870240366,-171.01,0.00019506,2]
[402738423,1768870240375,-166.66,0.00019556,2]
[402738424,1768870240385,-156.91270242,0.00019569,2]
[402738425,1768870240394,-1206.31,0.00019847,2]
[402738426,1768870240403,-503.0,0.00019863,2]
[402738427,1768870240413,-480.91,0.00019912,2]
[402738428,1768870240423,-87659.86569305,0.0001995,15]
[402738429,1768870240433,-1531.98062945,0.0002,2]
[402738430,1768870240445,-1465.80600112,0.0002,5]
[402738431,1768870240456,-25573.02857102,0.0002,2]
[402738432,1768870240466,-58393.47831125,0.0002,4]
[402738433,1768870240476,-500.0,0.0002,2]
[402738434,1768870240486,-500.0,0.00020001,2]
[402738435,1768870240496,-500.0,0.00020002,2]
[402738436,1768870240507,-499.9999,0.00020003,2]
[402738437,1768870240517,-292.8,0.00020137,2]
[402738438,1768870240528,-2155.36634409,0.0002014,2]
[402738439,1768870240537,-166.66,0.00020202,2]
[402738440,1768870240548,-40694.0513457,0.00020297,2]
[402738441,1768870240559,-1000.0,0.00020413,2]
[402738442,1768870240570,-250.0,0.00020498,2]
[402738443,1768870240579,-4657.24865685,0.00020536,12]
[402738444,1768870240589,-154.07,0.00020548,2]
[402738445,1768870240598,-21804.8787,0.00020597,7]
[402738446,1768870240608,-500.0,0.00020687,2]
[402738447,1768870240617,-500.0,0.00020687,2]
[402738448,1768870240627,-500.0,0.00020687,2]
[402738449,1768870240637,-500.0,0.00020687,2]
[402738450,1768870240649,-42347.9643047,0.00020742,2]
[402738451,1768870240659,-480.91,0.00020778,2]
[402738452,1768870240668,-200.0,0.00020788,2]
[402738453,1768870240677,-9080.0701938,0.00020809,2]
[402738454,1768870240687,-322.6107,0.0002081,2]
[402738455,1768870240699,-174.61919141,0.0002081,2]
[402738456,1768870240710,-578.20924308,0.0002081,2]
[402738457,1768870240720,-172.1978562,0.0002081,2]
[402738458,1768870240733,-359.76179104,0.0002081,2]
[402738459,1768870240743,-514.84070869,0.0002081,2]
[402738460,1768870240752,-500.0,0.0002081,2]
[402738461,1768870240764,-500.0,0.0002081,2]
[402738462,1768870240774,-500.0,0.0002081,2]
[402738463,1768870240784,-500.0,0.0002081,2]
[402738464,1768870240793,-500.0,0.0002081,2]
[402738465,1768870240803,-500.0,0.0002081,2]
[402738466,1768870240812,-500.0,0.0002081,2]
[402738467,1768870240822,-500.0,0.0002081,2]
[402738468,1768870240831,-500.0,0.0002081,2]
[402738469,1768870240841,-637.5435198,0.0002081,2]
[402738470,1768870240850,-620.0,0.0002081,2]
[402738471,1768870240860,-646.65982734,0.0002081,2]
[402738472,1768870240869,-4444.0,0.0002081,2]
[402738473,1768870240878,-3087.0,0.0002081,2]
[402738474,1768870240888,-151.0,0.0002081,2]
[402738475,1768870240901,-151.0,0.0002081,2]
[402738476,1768870240911,-151.0,0.0002081,2]
[402738477,1768870240921,-151.0,0.0002081,2]
[402738478,1768870240930,-151.0,0.0002081,2]
[402738479,1768870240939,-151.0,0.0002081,2]
[402738480,1768870240948,-151.0,0.0002081,2]
[402738481,1768870240958,-151.0,0.0002081,2]
[402738482,1768870240967,-151.0,0.0002081,2]
[402738483,1768870240977,-151.0,0.0002081,2]
[402738484,1768870240987,-151.0,0.0002081,2]
[402738485,1768870240996,-151.0,0.0002081,2]
[402738486,1768870241006,-151.0,0.0002081,2]
[402738487,1768870241015,-151.0,0.0002081,2]
[402738488,1768870241024,-166.66,0.00020847,2]
[402738489,1768870241034,-292.8,0.00020882,2]
[402738490,1768870241044,-2155.36634409,0.00020905,2]
[402738491,1768870241054,-350.0,0.00021,2]
[402738492,1768870241066,-1154.0,0.000211,2]
[402738493,1768870241076,-156.91270242,0.00021238,2]
[402738494,1768870241086,-9449.1080572,0.00021354,2]
[402738495,1768870241099,-181.08010149,0.00021358,2]
[402738496,1768870241108,-373.07297731,0.00021358,2]
[402738497,1768870241118,-533.88981491,0.00021358,2]
[402738498,1768870241128,-461.88011755,0.00021407,2]
[402738499,1768870241138,-1000.0,0.00021436,7]
[402738500,1768870241149,-151.0,0.00021457,2]
[402738501,1768870241159,-151.0,0.00021457,2]
[402738502,1768870241169,-615.0,0.0002146,2]
[402738503,1768870241178,-1332.0,0.0002146,2]
[402738504,1768870241187,-3473.0,0.0002146,2]
[402738505,1768870241197,-1407.0,0.0002146,2]
[402738506,1768870241207,-342.0,0.0002146,2]
[402738507,1768870241216,-1268.0,0.0002146,2]
[402738508,1768870241225,-1202.0,0.0002146,2]
[402738509,1768870241235,-566.0,0.0002146,2]
[402738510,1768870241244,-2440.0,0.0002146,2]
[402738511,1768870241253,-6562.0,0.0002146,2]
[402738512,1768870241263,-166.66,0.00021493,2]
[402738513,1768870241275,-292.8,0.00021628,2]
[402738514,1768870241284,-2155.36634409,0.0002167,2]
[402738515,1768870241297,-150.0,0.00021699,2]
[402738516,1768870241307,-150.0,0.00021699,2]
[402738517,1768870241316,-150.0,0.00021699,2]
[402738518,1768870241326,-500.0,0.00021699,2]
[402738519,1768870241338,-500.0,0.00021699,2]
[402738520,1768870241348,-150.0,0.00021699,2]
[402738521,1768870241357,-500.0,0.00021699,2]
[402738522,1768870241369,-150.0,0.00021699,2]
[402738523,1768870241379,-151.0,0.00021699,2]
[402738524,1768870241388,-151.0,0.00021699,2]
[402738525,1768870241398,-500.0,0.00021699,2]
[402738526,1768870241408,-500.0,0.00021699,2]
[402738527,1768870241417,-500.0,0.00021699,2]
[402738528,1768870241427,-216.50418531,0.00021699,2]
[402738529,1768870241437,-150.0,0.00021699,2]
[402738530,1768870241449,-150.0,0.00021754,2]
[402738531,1768870241461,-150.0,0.00021754,2]
[402738532,1768870241471,-150.0,0.00021754,2]
[402738533,1768870241481,-500.0,0.00021754,2]
[402738534,1768870241491,-500.0,0.00021754,2]
[402738535,1768870241500,-500.0,0.00021754,2]
[402738536,1768870241510,-150.0,0.00021754,2]
[402738537,1768870241520,-500.0,0.00021754,2]
[402738538,1768870241530,-500.0,0.00021754,2]
[402738539,1768870241540,-500.0,0.00021754,2]
[402738540,1768870241550,-4049.0,0.00021806,2]
[402738541,1768870241559,-150.0,0.00021809,2]
[402738542,1768870241571,-150.0,0.00021809,2]
[402738543,1768870241582,-150.0,0.00021809,2]
[402738544,1768870241592,-500.0,0.00021809,2]
[402738545,1768870241602,-450.0,0.00021809,2]
[402738546,1768870241614,-370.79353868,0.00021809,2]
[402738547,1768870241625,-250.0,0.00021809,2]
[402738548,1768870241634,-500.0,0.00021809,2]
[402738549,1768870241644,-500.0,0.00021809,2]
[402738550,1768870241654,-500.0,0.00021809,2]
[402738551,1768870241664,-4657.24865685,0.00021849,18]
[402738552,1768870241673,-150.0,0.00021863,2]
[402738553,1768870241683,-150.0,0.00021863,2]
[402738554,1768870241694,-150.0,0.00021863,2]
[402738555,1768870241704,-500.0,0.00021863,2]
[402738556,1768870241713,-500.0,0.00021863,2]
[402738557,1768870241722,-500.0,0.00021863,2]
[402738558,1768870241732,-168.15828133,0.00021906,2]
[402738559,1768870241741,-386.87667747,0.00021906,2]
[402738560,1768870241751,-553.64373807,0.00021906,2]
[402738561,1768870241761,-5000.0,0.00021918,2]
[402738562,1768870241770,-151.0,0.00021918,2]
[402738563,1768870241780,-151.0,0.00021918,2]
[402738564,1768870241790,-151.0,0.00021918,2]
[402738565,1768870241799,-150.0,0.00021918,2]
[402738566,1768870241809,-198.56508977,0.00021918,2]
[402738567,1768870241818,-150.0,0.00021918,2]
[402738568,1768870241828,-500.0,0.00021918,2]
[402738569,1768870241838,-500.0,0.00021918,2]
[402738570,1768870241849,-500.0,0.00021918,2]
[402738571,1768870241859,-250.0,0.00021973,2]
[402738572,1768870241870,-250.0,0.00021973,2]
[402738573,1768870241880,-288.25064297,0.00021973,2]
[402738574,1768870241892,-584.0,0.00021973,2]
[402738575,1768870241902,-500.0,0.00021973,2]
[402738576,1768870241912,-500.0,0.00021986,2]
[402738577,1768870241922,-500.0,0.00021986,2]
[402738578,1768870241932,-500.0,0.00021986,2]
[402738579,1768870241944,-500.0,0.00021986,2]
[402738580,1768870241954,-500.0,0.00021986,2]
[402738581,1768870241964,-500.0,0.00021986,2]
[402738582,1768870241974,-500.0,0.00021986,2]
[402738583,1768870241985,-500.0,0.00021986,2]
[402738584,1768870241996,-372.81908888,0.00021999,2]
[402738585,1768870242006,-483.79003433,0.00021999,2]
[402738586,1768870242016,-151.0,0.00022,2]
[402738587,1768870242027,-1479.14150735,0.00022,30]
[402738588,1768870242038,-151.0,0.00022,2]
[402738589,1768870242048,-151.0,0.00022,2]
[402738590,1768870242058,-6387.98,0.00022,7]
[402738591,1768870242068,-151.0,0.00022,2]
[402738592,1768870242078,-246226.88,0.00022,2]
[402738593,1768870242088,-151.0,0.00022,2]
[402738594,1768870242098,-258791.06339494,0.00022,4]
[402738595,1768870242108,-151.0,0.00022,2]
[402738596,1768870242117,-151.0,0.00022,2]
[402738597,1768870242127,-151.0,0.00022,2]
[402738598,1768870242137,-151.0,0.00022,2]
[402738599,1768870242147,-630.785769,0.00022,2]
[402738600,1768870242157,-630.785769,0.00022,2]
[402738601,1768870242168,-630.785769,0.00022,2]
[402738602,1768870242178,-630.785769,0.00022,2]
[402738603,1768870242188,-151.0,0.00022,2]
[402738604,1768870242198,-151.0,0.00022,2]
[402738606,1768870242209,-151.0,0.00022,2]
[402738607,1768870242219,-151.0,0.00022,2]
[402738609,1768870242228,-151.0,0.00022,2]
[402738611,1768870242239,-151.0,0.00022,2]
[402738612,1768870242249,-151.0,0.00022,2]
[402738613,1768870242259,-151.0,0.00022,2]
[402738614,1768870242268,-470.881799,0.00022,2]
[402738615,1768870242278,-151.0,0.00022,2]
[402738616,1768870242290,-470.881799,0.00022,2]
[402738617,1768870242301,-470.881799,0.00022,2]
[402738619,1768870242311,-151.0,0.00022,2]
[402738621,1768870242321,-151.0,0.00022,2]
[402738623,1768870242331,-470.881799,0.00022,2]
[402738624,1768870242341,-151.0,0.00022,2]
[402738625,1768870242351,-151.0,0.00022,2]
[402738626,1768870242362,-335.132599,0.00022,2]
[402738627,1768870242372,-335.132599,0.00022,2]
[402738628,1768870242381,-335.132599,0.00022,2]
[402738629,1768870242391,-335.132599,0.00022,2]
[402738630,1768870242401,-151.0,0.00022,2]
[402738631,1768870242411,-1725.160703,0.00022,2]
[402738632,1768870242421,-1725.160703,0.00022,2]
[402738633,1768870242431,-1725.160703,0.00022,2]
[402738634,1768870242440,-1725.160703,0.00022,2]
[402738636,1768870242450,-151.0,0.00022,2]
[402738638,1768870242459,-1206.31,0.00022052,2]
[402738640,1768870242469,-166.66,0.00022138,2]
[402738642,1768870242479,-334.5472959,0.00022179,2]
[402738644,1768870242488,-642.94,0.00022179,2]
[402738646,1768870242498,-4444.0,0.00022179,2]
[402738648,1768870242508,-171.01,0.00022293,2]
[402738650,1768870242517,-292.8,0.00022373,2]
[402738652,1768870242527,-25000.0,0.00022397,3]
[402738654,1768870242537,-11373.84305597,0.00022397,3]
[402738656,1768870242547,-2155.36634409,0.00022435,2]
[402738658,1768870242557,-154.74660564,0.00022454,2]
[402738659,1768870242567,-306.0964598,0.00022454,2]
[402738660,1768870242576,-1000.0,0.00022682,2]
[402738661,1768870242586,-166.66,0.00022784,2]
[402738662,1768870242596,-1293.0,0.000228,2]
[402738663,1768870242605,-156.91270242,0.00022907,2]
[402738664,1768870242615,-400.0,0.00023,2]
[402738665,1768870242624,-292.8,0.00023119,2]
[402738666,1768870242634,-4657.24865685,0.00023162,23]
[402738667,1768870242644,-2155.36634409,0.000232,2]
[402738668,1768870242654,-151.0,0.00023297,7]
[402738669,1768870242663,-151.0,0.00023297,7]
[402738670,1768870242672,-300.0,0.00023299,2]
[402738671,1768870242682,-300.0,0.00023299,2]
[402738672,1768870242691,-666.0,0.00023299,2]
[402738673,1768870242701,-300.0,0.00023299,2]
[402738674,1768870242710,-246226.88,0.000233,2]
[402738675,1768870242720,-151.0,0.000233,2]
[402738676,1768870242729,-151.0,0.000233,2]
[402738677,1768870242739,-151.0,0.000233,2]
[402738678,1768870242749,-151.0,0.000233,2]
[402738679,1768870242759,-151.0,0.000233,2]
[402738680,1768870242768,-151.0,0.000233,2]
[402738681,1768870242778,-151.0,0.000233,2]
[402738682,1768870242788,-151.0,0.000233,2]
[402738683,1768870242797,-151.0,0.000233,2]
[402738684,1768870242807,-151.0,0.000233,2]
[402738685,1768870242817,-151.0,0.000233,2]
[402738686,1768870242827,-151.13649322,0.0002331,2]
[402738687,1768870242836,-374.0,0.00023348,2]
[402738688,1768870242846,-374.0,0.00023391,2]
[402738689,1768870242856,-6387.98,0.000234,7]
[402738690,1768870242867,-1000.0,0.000234,9]
[402738691,1768870242876,-1000.0,0.000234,9]
[402738692,1768870242887,-1000.0,0.000234,9]
[402738693,1768870242897,-1000.0,0.000234,9]
[402738694,1768870242907,-1000.0,0.000234,9]
[402738696,1768870242918,-1000.0,0.000234,9]
[402738697,1768870242929,-1000.0,0.000234,9]
[402738698,1768870242939,-1000.0,0.000234,9]
[402738699,1768870242948,-374.0,0.00023493,2]
[402738700,1768870242958,-310.6741041,0.00023548,2]
[402738701,1768870242968,-597.06,0.00023548,2]
[402738702,1768870242978,-4444.0,0.00023548,2]
[402738703,1768870242988,-599.60298507,0.00023549,2]
[402738704,1768870242998,-670.58624095,0.00023549,2]
[402738705,1768870243009,-374.0,0.0002355,2]
[402738706,1768870243019,-151.0,0.0002363,2]
[402738707,1768870243030,-151.0,0.0002363,2]
[402738708,1768870243042,-151.0,0.0002363,2]
[402738709,1768870243053,-200.0,0.00023668,2]
[402738710,1768870243063,-981.0,0.000237,2]
[402738711,1768870243074,-307.0,0.000237,2]
[402738712,1768870243086,-912.0,0.000237,2]
[402738713,1768870243098,-374.0,0.00023739,2]
[402738714,1768870243110,-557.83,0.00023751,2]
[402738715,1768870243120,-318.2,0.00023751,2]
[402738716,1768870243130,-292.8,0.00023864,2]
[402738717,1768870243139,-374.0,0.00023919,2]
[402738718,1768870243148,-374.0,0.00023919,2]
[402738719,1768870243158,-400.0,0.00024,3]
[402738720,1768870243168,-374.0,0.00024004,2]
[402738721,1768870243177,-374.0,0.00024078,2]
[402738722,1768870243187,-374.0,0.00024083,2]
[402738723,1768870243196,-1000.0,0.000242,2]
[402738724,1768870243205,-1089.72,0.00024225,30]
[402738725,1768870243214,-1206.31,0.00024257,2]
[402738726,1768870243224,-505.0,0.00024274,2]
[402738727,1768870243233,-374.0,0.00024365,2]
[402738728,1768870243243,-213.90517144,0.00024376,2]
[402738729,1768870243253,-760.0,0.00024397,2]
[402738730,1768870243262,-246226.88,0.000244,2]
[402738731,1768870243272,-151.0,0.000244,2]
[402738732,1768870243283,-151.0,0.000244,2]
[402738733,1768870243292,-630.785769,0.000244,2]
[402738734,1768870243304,-630.785769,0.000244,2]
[402738735,1768870243314,-630.785769,0.000244,2]
[402738736,1768870243323,-630.785769,0.000244,2]
[402738737,1768870243333,-151.0,0.000244,2]
[402738738,1768870243344,-151.0,0.000244,2]
[402738739,1768870243354,-151.0,0.000244,2]
[402738740,1768870243363,-151.0,0.000244,2]
[402738741,1768870243374,-151.0,0.000244,2]
[402738742,1768870243383,-151.0,0.000244,2]
[402738743,1768870243394,-151.0,0.000244,2]
[402738744,1768870243403,-151.0,0.000244,2]
[402738745,1768870243413,-470.881799,0.000244,2]
[402738746,1768870243423,-151.0,0.000244,2]
[402738747,1768870243433,-470.881799,0.000244,2]
[402738748,1768870243443,-470.881799,0.000244,2]
[402738749,1768870243452,-151.0,0.000244,2]
[402738750,1768870243462,-151.0,0.000244,2]
[402738751,1768870243472,-470.881799,0.000244,2]
[402738752,1768870243482,-151.0,0.000244,2]
[402738753,1768870243492,-151.0,0.000244,2]
[402738754,1768870243502,-335.132599,0.000244,2]
[402738755,1768870243511,-335.132599,0.000244,2]
[402738756,1768870243521,-335.132599,0.000244,2]
[402738757,1768870243531,-335.132599,0.000244,2]
[402738758,1768870243541,-151.0,0.000244,2]
[402738759,1768870243550,-1725.160703,0.000244,2]
[402738760,1768870243560,-1725.160703,0.000244,2]
[402738761,1768870243570,-1725.160703,0.000244,2]
[402738762,1768870243579,-1725.160703,0.000244,2]
[402738763,1768870243589,-151.0,0.000244,2]
[402738764,1768870243598,-500.0,0.00024456,7]
[402738765,1768870243607,-1600.0,0.00024456,7]
[402738766,1768870243617,-900.0,0.00024456,7]
[402738767,1768870243626,-615.0,0.0002446,2]
[402738768,1768870243636,-1332.0,0.0002446,2]
[402738769,1768870243645,-3473.0,0.0002446,2]
[402738770,1768870243655,-1407.0,0.0002446,2]
[402738771,1768870243665,-342.0,0.0002446,2]
[402738772,1768870243675,-1268.0,0.0002446,2]
[402738773,1768870243685,-1202.0,0.0002446,2]
[402738774,1768870243694,-2440.0,0.0002446,2]
[402738775,1768870243704,-6562.0,0.0002446,2]
[402738776,1768870243713,-4657.24865685,0.00024475,28]
[402738777,1768870244070,-200.0,0.00024495,2]
[402738778,1768870244095,-6387.98,0.000245,7]
[402738779,1768870244120,-200.0,0.00024523,3]
[402738780,1768870244144,-150.0,0.00024534,2]
[402738781,1768870244168,-150.0,0.00024534,2]
[402738782,1768870244190,-218.57,0.00024534,2]
[402738783,1768870244213,-150.0,0.00024534,2]
[402738784,1768870244223,-156.91270242,0.00024576,2]
[402738785,1768870244234,-374.0,0.000246,2]
[402738786,1768870244245,-292.8,0.00024609,2]
[402738787,1768870244255,-374.0,0.00024622,2]
[402738788,1768870244265,-799.68,0.00024658,2]
[402738789,1768870244276,-1000.0,0.00024658,2]
[402738790,1768870244286,-163.200251,0.00024658,2]
[402738791,1768870244300,-163.200251,0.00024658,2]
[402738792,1768870244311,-163.200251,0.00024658,2]
[402738793,1768870244321,-163.200251,0.00024658,2]
[402738794,1768870244334,-163.200251,0.00024658,2]
[402738795,1768870244346,-163.200251,0.00024658,2]
[402738796,1768870244356,-163.200251,0.00024658,2]
[402738797,1768870244370,-163.200251,0.00024658,2]
[402738798,1768870244380,-151.0,0.00024658,2]
[402738799,1768870244390,-151.0,0.00024658,2]
[402738800,1768870244401,-151.0,0.00024658,2]
[402738801,1768870244411,-151.0,0.00024658,2]
[402738802,1768870244420,-151.0,0.00024658,2]
[402738803,1768870244429,-374.0,0.00024669,2]
[402738804,1768870244438,-150.0,0.0002475,2]
[402738805,1768870244447,-374.0,0.00024786,2]
[402738806,1768870244455,-151.0,0.00024797,7]
[402738807,1768870244464,-151.0,0.00024797,7]
[402738808,1768870244473,-300.0,0.00024799,10]
[402738809,1768870244481,-666.0,0.00024799,2]
[402738810,1768870244489,-500.0,0.00024799,2]
[402738811,1768870244498,-500.0,0.00024799,2]
[402738812,1768870244508,-500.0,0.00024799,2]
[402738813,1768870244519,-623.19299294,0.00024799,2]
[402738814,1768870244529,-500.0,0.00024799,2]
[402738815,1768870244539,-500.0,0.00024799,2]
[402738816,1768870244551,-500.0,0.00024799,2]
[402738817,1768870244563,-500.0,0.00024799,2]
[402738818,1768870244572,-500.0,0.00024799,2]